bitfinex/quotes_SOLUSD_20240606
["timestamp","ask_amount","ask_price","bid_price","bid_amount"]
[1717682570143,45.0,172.53,172.48,125.79]
[1717682570340,45.0,172.54,172.49,5.79]
[1717682570539,22.856,172.55,172.51,5.79]
[1717682571141,22.856,172.55,172.5,5.79]
[1717682571652,0.17,172.54,172.5,5.79]
[1717682571858,0.34,172.54,172.5,5.79]
[1717682572058,45.34,172.54,172.5,5.79]
[1717682575764,45.34,172.54,172.48,120.0]
[1717682575948,45.34,172.54,172.49,5.79]
[1717682576148,45.34,172.54,172.5,5.79]
[1717682576571,22.856,172.55,172.51,5.79]
[1717682577873,22.856,172.55,172.5,120.0]
[1717682578164,22.856,172.55,172.51,5.79]
[1717682581947,22.856,172.55,172.52,5.79]
[1717682582154,22.856,172.55,172.53,5.79]
[1717682582571,22.856,172.55,172.54,125.79]
[1717682583173,22.856,172.55,172.54,131.82]
[1717682583369,22.856,172.55,172.54,151.82]
[1717682583947,22.856,172.55,172.54,168.3721]
[1717682586065,22.856,172.55,172.54,151.82]
[1717682587548,22.856,172.55,172.54,167.8872]
[1717682588293,42.8652,172.68,172.59,120.0]
[1717682588577,45.0,172.67,172.62,5.79]
[1717682589274,42.8652,172.68,172.62,5.79]
[1717682589449,5.79,172.67,172.61,5.79]
[1717682590153,42.8652,172.68,172.61,5.79]
[1717682590372,5.79,172.67,172.61,5.79]
[1717682590572,0.34,172.66,172.61,5.79]
[1717682591771,45.34,172.66,172.56,120.0]
[1717682592082,5.79,172.64,172.58,5.79]
[1717682592253,51.13,172.66,172.59,5.79]
[1717682592590,51.13,172.66,172.6,5.79]
[1717682592874,45.34,172.66,172.62,5.79]
[1717682593053,0.34,172.66,172.62,5.79]
[1717682593356,40.7225,172.68,172.62,5.79]
[1717682593357,6.0125,172.68,172.62,5.79]
[1717682593557,18.733,172.7,172.6,120.0]
[1717682593558,18.733,172.7,172.63,5.79]
[1717682593868,5.79,172.69,172.63,5.79]
[1717682594581,45.0,172.68,172.64,5.79]
[1717682594773,36.8522,172.72,172.64,5.79]
[1717682595084,36.8522,172.72,172.65,5.79]
[1717682595386,36.8522,172.72,172.62,120.0]
[1717682595387,34.71,172.72,172.66,5.79]
[1717682595685,40.5,172.72,172.66,5.79]
[1717682596057,0.17,172.71,172.66,5.79]
[1717682597272,2.1418,172.75,172.64,120.0]
[1717682597478,5.79,172.74,172.68,5.79]
[1717682598055,5.79,172.74,172.64,120.0]
[1717682598263,5.79,172.74,172.67,5.79]
[1717682598674,0.17,172.73,172.67,5.79]
[1717682598864,5.79,172.74,172.68,5.79]
[1717682599387,5.79,172.74,172.67,5.79]
[1717682599564,50.79,172.73,172.67,5.79]
[1717682600155,0.17,172.72,172.67,5.79]
[1717682600788,0.17,172.72,172.68,5.79]
[1717682601886,45.0,172.73,172.68,5.79]
[1717682602675,45.0,172.73,172.69,5.79]
[1717682602876,51.13,172.74,172.68,5.79]
[1717682603182,0.17,172.73,172.68,5.79]
[1717682603572,0.17,172.73,172.66,120.0]
[1717682603887,0.17,172.73,172.67,5.79]
[1717682604390,0.17,172.73,172.68,5.79]
[1717682604782,0.17,172.73,172.66,120.0]
[1717682604783,0.17,172.73,172.69,5.79]
[1717682605688,0.17,172.73,172.66,120.0]
[1717682605876,5.96,172.73,172.67,20.0]
[1717682606194,0.17,172.73,172.68,5.79]
[1717682607265,0.17,172.73,172.69,5.79]
[1717682607666,6.0706,172.78,172.67,20.0]
[1717682607667,6.0706,172.78,172.71,5.79]
[1717682607871,36.8511,172.81,172.7,140.0]
[1717682608087,5.79,172.79,172.7,120.0]
[1717682608294,5.79,172.79,172.71,20.0]
[1717682608476,5.79,172.79,172.73,5.79]
[1717682608680,2.1412,172.8,172.73,5.79]
[1717682608976,5.79,172.79,172.73,5.79]
[1717682609467,36.8511,172.81,172.73,5.79]
[1717682609672,5.79,172.8,172.74,5.79]
[1717682609895,34.71,172.81,172.71,20.0]
[1717682609896,36.8505,172.86,172.78,5.79]
[1717682610195,5.79,172.84,172.78,5.79]
[1717682610406,36.8505,172.86,172.78,5.79]
[1717682610692,5.79,172.83,172.77,5.79]
[1717682610894,5.79,172.82,172.76,5.79]
[1717682611205,5.79,172.81,172.73,120.0]
[1717682611374,5.79,172.78,172.72,5.79]
[1717682611686,5.79,172.77,172.7,6.619]
[1717682611898,5.79,172.77,172.71,5.79]
[1717682612395,5.79,172.76,172.67,120.0]
[1717682612700,5.79,172.76,172.66,22.4207]
[1717682612701,45.0,172.75,172.7,5.79]
[1717682613079,0.17,172.78,172.72,5.79]
[1717682613274,45.34,172.78,172.73,5.79]
[1717682613508,0.17,172.78,172.73,5.79]
[1717682613684,0.17,172.78,172.74,5.79]
[1717682614193,45.0,172.79,172.73,120.0]
[1717682614495,45.0,172.79,172.76,5.79]
[1717682615601,45.0,172.79,172.75,5.79]
[1717682615803,5.79,172.79,172.71,120.0]
[1717682615993,7.20973552,172.79,172.73,5.79]
[1717682616376,5.79,172.79,172.71,120.0]
[1717682616703,45.17,172.78,172.73,5.79]
[1717682616896,0.17,172.78,172.74,5.79]
[1717682617099,0.17,172.8,172.74,5.79]
[1717682617400,45.34,172.8,172.75,5.79]
[1717682618410,45.34,172.8,172.73,120.0]
[1717682618703,45.34,172.8,172.75,5.79]
[1717682619289,45.34,172.8,172.73,120.0]
[1717682619490,45.17,172.8,172.73,120.0]
[1717682619697,0.17,172.8,172.73,120.0]
[1717682620784,1.58973552,172.8,172.73,120.0]
[1717682620985,7.37973552,172.8,172.73,120.0]
[1717682621313,45.0,172.79,172.74,5.79]
[1717682623806,50.79,172.79,172.73,5.79]
[1717682624390,50.79,172.79,172.72,20.0]
[1717682624591,50.79,172.79,172.73,5.79]
[1717682624901,50.79,172.79,172.72,20.0]
[1717682625202,0.17,172.8,172.73,120.0]
[1717682625399,0.17,172.8,172.74,20.0]
[1717682625608,45.17,172.8,172.75,5.79]
[1717682625788,45.17,172.8,172.74,20.0]
[1717682626106,45.17,172.8,172.76,5.79]
[1717682626287,0.17,172.8,172.76,5.79]
[1717682626790,45.0,172.81,172.76,5.79]
[1717682628093,0.17,172.82,172.76,5.79]
[1717682628295,0.17,172.82,172.75,120.0]
[1717682628594,7.37973552,172.82,172.76,25.79]
[1717682628792,7.37973552,172.82,172.76,20.0]
[1717682629007,5.79,172.81,172.76,20.0]
[1717682629810,11.8253,172.81,172.76,20.0]
[1717682630411,1.41973552,172.8,172.76,20.0]
[1717682630613,5.96,172.79,172.73,5.79]
[1717682630791,5.96,172.79,172.74,20.0]
[1717682630991,0.17,172.79,172.74,20.0]
[1717682631193,0.17,172.79,172.74,25.79]
[1717682631489,46.58973552,172.79,172.74,25.79]
[1717682631689,46.58973552,172.79,172.74,20.0]
[1717682631928,51.3971,172.79,172.71,20.0]
[1717682632130,5.96,172.78,172.71,20.0]
[1717682632421,5.79,172.76,172.67,120.0]
[1717682632712,45.17,172.75,172.7,5.79]
[1717682633014,50.96,172.75,172.67,120.0]
[1717682633202,45.17,172.75,172.7,5.79]
[1717682633389,45.17,172.75,172.66,6.619]
[1717682633390,0.17,172.75,172.69,120.0]
[1717682633590,0.17,172.78,172.71,5.79]
[1717682633792,45.0,172.77,172.71,5.79]
[1717682634000,0.17,172.76,172.71,5.79]
[1717682638317,6.4782,172.74,172.65,120.0]
[1717682638518,45.17,172.73,172.68,5.79]
[1717682638714,6.4782,172.74,172.69,25.79]
[1717682638898,5.96,172.76,172.69,25.79]
[1717682639094,45.0,172.75,172.69,25.79]
[1717682639297,45.0,172.75,172.69,145.79]
[1717682639514,45.0,172.75,172.69,140.0]
[1717682639698,45.17,172.76,172.71,5.79]
[1717682640625,45.17,172.76,172.69,140.0]
[1717682640923,0.17,172.76,172.69,140.0]
[1717682641100,0.34,172.76,172.71,5.79]
[1717682641524,0.34,172.76,172.72,5.79]
[1717682641729,0.17,172.76,172.71,5.79]
[1717682641901,0.17,172.76,172.72,5.79]
[1717682642604,0.17,172.76,172.71,5.79]
[1717682644104,0.17,172.76,172.69,20.0]
[1717682644303,5.79,172.75,172.68,20.0]
[1717682644623,52.54973552,172.74,172.68,5.79]
[1717682644809,52.37973552,172.74,172.69,20.0]
[1717682645007,58.71223552,172.74,172.69,20.0]
[1717682645520,7.20973552,172.73,172.69,20.0]
[1717682645826,0.17,172.72,172.67,5.79]
[1717682646002,0.17,172.72,172.68,20.0]
[1717682647222,0.17,172.72,172.68,25.79]
[1717682647523,0.17,172.73,172.68,25.79]
[1717682647735,6.8135,172.73,172.68,25.79]
[1717682649148,6.8135,172.73,172.69,5.79]
[1717682649505,6.8135,172.73,172.68,25.79]
[1717682650434,6.8135,172.73,172.65,120.0]
[1717682650639,12.6035,172.73,172.67,5.79]
[1717682650941,6.8135,172.73,172.68,5.79]
[1717682651717,8.23323552,172.73,172.68,5.79]
[1717682652054,45.0,172.72,172.63,120.0]
[1717682652263,5.79,172.7,172.64,20.0]
[1717682652555,58.88683552,172.69,172.64,20.0]
[1717682652726,0.17,172.68,172.64,20.0]
[1717682652929,0.17,172.68,172.63,20.0]
[1717682653235,0.17,172.68,172.63,25.79]
[1717682653417,1.58973552,172.68,172.63,5.79]
[1717682653746,51.5071,172.69,172.65,5.79]
[1717682653915,51.5071,172.69,172.61,120.0]
[1717682654120,51.5071,172.69,172.64,5.79]
[1717682654837,1.58973552,172.68,172.64,5.79]
[1717682655841,8.03313552,172.68,172.64,5.79]
[1717682656735,45.0,172.67,172.63,5.79]
[1717682656932,45.0,172.67,172.64,20.0]
[1717682660539,1.41973552,172.66,172.63,5.79]
[1717682660752,1.41973552,172.66,172.64,20.0]
[1717682661125,45.0,172.67,172.62,5.79]
[1717682661333,45.0,172.67,172.63,20.0]
[1717682661837,45.0,172.67,172.64,5.79]
[1717682662357,6.6134,172.68,172.64,5.79]
[1717682662530,45.0,172.67,172.64,5.79]
[1717682663263,0.17,172.68,172.64,5.79]
[1717682663442,41.3539,172.72,172.63,140.0]
[1717682663640,6.6439,172.72,172.65,120.0]
[1717682663947,5.79,172.74,172.68,5.79]
[1717682664451,1.41973552,172.73,172.68,5.79]
[1717682664655,7.46043552,172.73,172.68,5.79]
[1717682664951,6.0407,172.73,172.68,5.79]
[1717682665257,0.17,172.72,172.68,5.79]
[1717682666160,45.34,172.72,172.68,5.79]
[1717682666349,0.17,172.72,172.69,5.79]
[1717682666860,0.17,172.72,172.7,5.79]
[1717682667059,0.17,172.72,172.69,5.79]
[1717682667944,0.17,172.72,172.65,120.0]
[1717682668149,7.20973552,172.74,172.66,20.0]
[1717682668452,5.79,172.72,172.66,25.79]
[1717682668752,51.4418,172.71,172.66,25.79]
[1717682668928,1.41973552,172.7,172.66,20.0]
[1717682669760,51.13,172.71,172.66,20.0]
[1717682669955,51.5723,172.71,172.66,20.0]
[1717682670834,1.41973552,172.7,172.66,20.0]
[1717682671066,0.17,172.69,172.62,20.0]
[1717682671274,6.6211,172.69,172.64,5.79]
[1717682671564,45.0,172.68,172.65,20.0]
[1717682671768,46.41973552,172.68,172.65,20.0]
[1717682672440,46.41973552,172.68,172.59,120.0]
[1717682672638,46.41973552,172.68,172.64,5.79]
[1717682674165,45.0,172.68,172.64,5.79]
[1717682674734,0.17,172.67,172.64,5.79]
[1717682675953,0.17,172.67,172.65,5.79]
[1717682678540,0.17,172.67,172.59,120.0]
[1717682678749,0.17,172.67,172.64,5.79]
[1717682683459,0.17,172.67,172.6,20.0]
[1717682683868,0.17,172.67,172.63,5.79]
[1717682684058,6.3217,172.67,172.64,20.0]
[1717682684368,7.74143552,172.67,172.64,20.0]
[1717682684547,45.0,172.66,172.64,20.0]
[1717682684748,45.0,172.66,172.63,20.0]
[1717682685561,45.0,172.66,172.62,5.79]
[1717682685866,6.3217,172.67,172.63,25.79]
[1717682686165,46.41973552,172.66,172.63,25.79]
[1717682686950,45.0,172.66,172.63,25.79]
[1717682700883,1.41973552,172.65,172.57,124.67409116]
[1717682701084,0.17,172.64,172.55,120.0]
[1717682701385,6.6576,172.64,172.6,5.79]
[1717682701685,6.6576,172.63,172.59,5.79]
[1717682702373,6.6576,172.63,172.6,5.79]
[1717682702860,0.17,172.64,172.61,5.79]
[1717682703055,0.34,172.65,172.61,5.79]
[1717682703265,6.3403,172.65,172.61,5.79]
[1717682703462,45.0,172.64,172.61,5.79]
[1717682703676,0.17,172.63,172.61,5.79]
[1717682704276,34.74,172.69,172.62,5.79]
[1717682704463,45.17,172.68,172.63,5.79]
[1717682704660,51.8843,172.68,172.63,5.79]
[1717682706565,57.6743,172.68,172.62,5.79]
[1717682709892,51.8843,172.68,172.62,5.79]
[1717682710194,45.34,172.68,172.63,5.79]
[1717682710570,6.3189,172.72,172.66,5.79]
[1717682710783,12.1089,172.72,172.66,5.79]
[1717682710989,6.3189,172.72,172.63,120.0]
[1717682711299,6.3189,172.72,172.67,5.79]
[1717682712780,0.17,172.71,172.67,5.79]
[1717682713083,45.17,172.71,172.67,5.79]
[1717682713490,0.17,172.71,172.67,5.79]
[1717682713681,34.74,172.75,172.68,5.79]
[1717682713878,0.17,172.74,172.69,5.79]
[1717682714067,6.1696,172.76,172.69,5.79]
[1717682714272,5.79,172.77,172.71,5.79]
[1717682714883,40.53,172.78,172.72,5.79]
[1717682715075,40.53,172.78,172.71,5.79]
[1717682715387,34.74,172.79,172.73,5.79]
[1717682715872,6.1696,172.8,172.75,5.79]
[1717682716589,17.6641,172.83,172.76,5.79]
[1717682716891,5.79,172.82,172.76,5.79]
[1717682717273,36.8807,172.84,172.76,5.79]
[1717682717471,5.79,172.83,172.76,5.79]
[1717682717780,0.17,172.82,172.76,5.79]
[1717682717976,45.34,172.82,172.76,5.79]
[1717682718176,45.34,172.82,172.77,20.0]
[1717682718368,45.17,172.82,172.77,20.0]
[1717682718571,45.0,172.81,172.77,20.0]
[1717682718784,0.17,172.8,172.77,20.0]
[1717682719896,0.17,172.8,172.77,25.79]
[1717682720096,50.79,172.83,172.77,25.79]
[1717682720400,0.34,172.82,172.77,25.79]
[1717682721668,0.34,172.82,172.77,20.0]
[1717682723177,0.34,172.82,172.77,25.79]
[1717682726792,0.34,172.82,172.77,20.0]
[1717682727200,0.34,172.82,172.76,5.79]
[1717682727384,0.34,172.82,172.77,20.0]
[1717682728591,0.34,172.82,172.77,25.79]
[1717682730900,5.79,172.81,172.71,126.2545]
[1717682731199,51.13,172.8,172.74,5.79]
[1717682731401,51.13,172.8,172.72,20.0]
[1717682731402,7.20973552,172.79,172.73,5.79]
[1717682731705,7.20973552,172.79,172.68,120.0]
[1717682731706,85.87,172.78,172.68,120.0]
[1717682731908,5.79,172.77,172.71,5.79]
[1717682732095,45.34,172.76,172.68,120.0]
[1717682732295,45.34,172.76,172.71,5.79]
[1717682732495,45.34,172.76,172.68,120.0]
[1717682732691,45.34,172.76,172.71,5.79]
[1717682735203,45.34,172.76,172.68,120.0]
[1717682735402,1.41973552,172.75,172.69,20.0]
[1717682735705,0.17,172.74,172.69,25.79]
[1717682735905,45.17,172.74,172.69,25.79]
[1717682736384,1.41973552,172.73,172.69,20.0]
[1717682736584,1.41973552,172.73,172.68,5.79]
[1717682736803,45.17,172.74,172.69,20.0]
[1717682736987,0.17,172.73,172.69,20.0]
[1717682737189,7.37973552,172.73,172.69,20.0]
[1717682737392,45.17,172.72,172.67,5.79]
[1717682737598,45.17,172.72,172.68,20.0]
[1717682738713,40.53,172.76,172.69,5.79]
[1717682738889,45.34,172.75,172.7,5.79]
[1717682739613,45.34,172.75,172.71,5.79]
[1717682740594,45.17,172.75,172.71,5.79]
[1717682740800,45.17,172.75,172.68,20.0]
[1717682740801,40.53,172.79,172.72,5.79]
[1717682741095,0.17,172.78,172.72,5.79]
[1717682741902,5.96,172.78,172.72,5.79]
[1717682742212,0.17,172.78,172.74,5.79]
[1717682742410,45.17,172.78,172.74,5.79]
[1717682742820,0.17,172.77,172.74,5.79]
[1717682742991,0.17,172.77,172.73,5.79]
[1717682743326,1.58973552,172.77,172.72,5.79]
[1717682743612,0.17,172.77,172.73,5.79]
[1717682743914,1.58973552,172.77,172.72,5.79]
[1717682744297,0.17,172.77,172.72,5.79]
[1717682744713,0.17,172.77,172.69,120.0]
[1717682745011,0.17,172.77,172.72,5.79]
[1717682745406,0.17,172.77,172.69,120.0]
[1717682745603,0.17,172.77,172.73,5.79]
[1717682746315,45.17,172.78,172.73,5.79]
[1717682747808,45.17,172.78,172.68,140.0]
[1717682748009,45.17,172.78,172.73,5.79]
[1717682748211,45.17,172.78,172.68,140.0]
[1717682748724,45.17,172.78,172.72,5.79]
[1717682749318,7.37973552,172.77,172.68,140.0]
[1717682749516,7.37973552,172.77,172.7,5.79]
[1717682749517,45.17,172.76,172.7,5.79]
[1717682749723,45.17,172.76,172.71,25.79]
[1717682750301,45.17,172.76,172.72,5.79]
[1717682750504,0.17,172.76,172.72,5.79]
[1717682752903,1.58973552,172.76,172.71,20.0]
[1717682753231,1.58973552,172.76,172.71,5.79]
[1717682753425,1.58973552,172.76,172.67,120.0]
[1717682753618,1.58973552,172.76,172.71,5.79]
[1717682755956,0.17,172.76,172.71,5.79]
[1717682758546,0.17,172.76,172.72,5.79]
[1717682762043,45.0,172.77,172.73,5.79]
[1717682762858,45.17,172.78,172.73,5.79]
[1717682763059,0.17,172.77,172.73,5.79]
[1717682763559,0.17,172.77,172.72,5.79]
[1717682763763,0.17,172.77,172.73,5.79]
[1717682764155,0.17,172.77,172.71,120.0]
[1717682764156,1.75973552,172.77,172.67,120.0]
[1717682764350,6.13,172.77,172.71,5.79]
[1717682764542,45.0,172.76,172.71,5.79]
[1717682765251,45.34,172.77,172.71,5.79]
[1717682765956,53.2715,172.77,172.67,120.0]
[1717682766137,5.79,172.76,172.7,5.79]
[1717682766341,46.58973552,172.75,172.71,20.0]
[1717682766875,45.17,172.75,172.71,20.0]
[1717682767048,45.0,172.74,172.71,20.0]
[1717682767236,0.17,172.75,172.71,20.0]
[1717682767441,1.58973552,172.75,172.71,20.0]
[1717682767965,0.17,172.75,172.71,20.0]
[1717682768859,0.17,172.75,172.71,25.79]
[1717682769165,45.0,172.76,172.72,5.79]
[1717682769471,45.34,172.77,172.71,20.0]
[1717682769656,45.34,172.77,172.71,5.79]
[1717682769973,1.41973552,172.76,172.69,20.0]
[1717682770176,0.34,172.75,172.7,5.79]
[1717682770662,45.34,172.75,172.67,20.0]
[1717682770854,45.34,172.75,172.7,5.79]
[1717682771255,45.34,172.75,172.67,20.0]
[1717682771648,45.34,172.75,172.69,5.79]
[1717682771859,45.34,172.75,172.7,20.0]
[1717682772061,7.59303552,172.74,172.7,20.0]
[1717682772266,45.34,172.73,172.69,25.79]
[1717682772451,45.17,172.73,172.7,5.79]
[1717682773467,45.17,172.73,172.69,5.79]
[1717682774352,45.17,172.73,172.7,5.79]
[1717682774557,45.0,172.73,172.71,5.79]
[1717682774764,45.0,172.73,172.69,5.79]
[1717682776061,45.0,172.74,172.69,5.79]
[1717682776263,1.41973552,172.73,172.69,5.79]
[1717682777045,1.41973552,172.73,172.68,5.79]
[1717682777358,1.41973552,172.73,172.69,20.0]
[1717682777547,45.0,172.74,172.69,20.0]
[1717682777866,1.58973552,172.73,172.69,20.0]
[1717682779377,0.17,172.73,172.7,5.79]
[1717682780164,40.53,172.77,172.7,5.79]
[1717682780367,45.0,172.76,172.7,5.79]
[1717682780569,45.0,172.76,172.69,20.0]
[1717682780570,45.0,172.76,172.71,5.79]
[1717682780853,45.0,172.76,172.7,5.79]
[1717682781376,45.0,172.76,172.71,5.79]
[1717682781579,0.17,172.75,172.71,5.79]
[1717682781799,0.17,172.75,172.72,5.79]
[1717682782272,45.0,172.76,172.72,5.79]
[1717682782476,45.34,172.77,172.72,5.79]
[1717682782654,45.34,172.77,172.74,5.79]
[1717682782655,45.0,172.77,172.74,5.79]
[1717682783872,45.0,172.77,172.73,5.79]
[1717682784076,45.17,172.78,172.73,5.79]
[1717682785360,45.17,172.78,172.69,140.0]
[1717682785564,2.3116,172.77,172.69,20.0]
[1717682785877,5.79,172.74,172.68,5.79]
[1717682786176,45.34,172.73,172.68,5.79]
[1717682786580,45.34,172.73,172.67,5.79]
[1717682786957,45.34,172.73,172.65,120.0]
[1717682787159,45.17,172.73,172.69,5.79]
[1717682787686,45.0,172.73,172.7,5.79]
[1717682787977,41.0167,172.77,172.7,5.79]
[1717682788287,0.34,172.76,172.72,5.79]
[1717682788487,45.0,172.76,172.72,5.79]
[1717682788660,34.74,172.8,172.73,5.79]
[1717682788861,5.79,172.79,172.73,5.79]
[1717682789365,22.4888,172.81,172.74,5.79]
[1717682789569,6.4241,172.81,172.75,5.79]
[1717682789770,12.2141,172.81,172.75,5.79]
[1717682789983,6.4241,172.81,172.75,5.79]
[1717682790579,6.4241,172.81,172.73,120.0]
[1717682790580,5.79,172.82,172.73,120.0]
[1717682790770,40.53,172.83,172.76,5.79]
[1717682790981,5.79,172.83,172.77,5.79]
[1717682791477,5.79,172.84,172.78,5.79]
[1717682791660,5.79,172.84,172.75,120.0]
[1717682791859,5.79,172.84,172.78,5.79]
[1717682792478,5.79,172.83,172.75,120.0]
[1717682792680,0.17,172.82,172.77,5.79]
[1717682793277,45.17,172.82,172.77,5.79]
[1717682793480,45.17,172.82,172.78,5.79]
[1717682793686,45.17,172.82,172.76,20.0]
[1717682793687,0.17,172.82,172.77,5.79]
[1717682795394,34.74,172.78,172.64,120.0]
[1717682795565,5.79,172.74,172.68,5.79]
[1717682795771,45.34,172.73,172.68,5.79]
[1717682797874,6.3453,172.79,172.68,120.0]
[1717682798095,0.17,172.78,172.73,5.79]
[1717682798272,50.0526,172.8,172.73,5.79]
[1717682798273,36.8812,172.8,172.73,5.79]
[1717682798482,5.79,172.79,172.73,5.79]
[1717682798682,5.79,172.8,172.74,5.79]
[1717682799294,23.5188,172.84,172.75,20.0]
[1717682799470,5.79,172.83,172.77,5.79]
[1717682799669,5.79,172.83,172.76,5.79]
[1717682800698,0.17,172.82,172.76,5.79]
[1717682801097,0.17,172.82,172.77,5.79]
[1717682801589,5.96,172.82,172.76,5.79]
[1717682801990,45.0,172.81,172.75,140.0]
[1717682802899,36.8805,172.86,172.75,140.0]
[1717682803205,0.17,172.85,172.75,140.0]
[1717682804082,45.17,172.85,172.75,140.0]
[1717682804308,0.17,172.84,172.75,140.0]
[1717682807914,1.58973552,172.84,172.75,140.0]
[1717682808203,0.17,172.84,172.75,140.0]
[1717682809782,0.17,172.84,172.77,120.0]
[1717682809983,0.17,172.84,172.78,20.0]
[1717682812787,36.88,172.9,172.79,120.0]
[1717682813106,2.1401,172.89,172.8,20.0]
[1717682813510,2.1401,172.89,172.81,120.0]
[1717682814007,0.17,172.88,172.81,120.0]
[1717682814189,2.3102,172.88,172.81,120.0]
[1717682814390,47.3102,172.88,172.81,120.0]
[1717682814691,2.1401,172.89,172.81,120.0]
[1717682814894,36.88,172.9,172.81,120.0]
[1717682815781,30.13303548,172.96,172.81,120.0]
[1717682816004,2.1396,172.93,172.84,120.0]
[1717682816381,36.8795,172.94,172.84,120.0]
[1717682816986,2.1395,172.94,172.84,120.0]
[1717682817186,2.1395,172.94,172.85,20.0]
[1717682818607,0.34,172.93,172.85,20.0]
[1717682819515,0.34,172.93,172.86,120.0]
[1717682819693,0.17,172.93,172.86,120.0]
[1717682820612,0.17,172.93,172.85,20.0]
[1717682820613,3.72933552,172.93,172.85,20.0]
[1717682820826,45.34,172.93,172.85,20.0]
[1717682821989,53.2596,172.93,172.87,5.78]
[1717682822300,5.78,172.92,172.86,5.78]
[1717682822985,7.19973552,172.92,172.86,5.78]
[1717682823201,45.0,172.91,172.86,5.78]
[1717682825914,45.0,172.91,172.85,25.78]
[1717682826612,50.78,172.91,172.85,25.78]
[1717682828620,45.0,172.91,172.85,25.78]
[1717682828922,45.0,172.91,172.85,20.0]
[1717682829112,45.0,172.91,172.85,25.78]
[1717682829420,45.0,172.91,172.86,5.78]
[1717682830017,45.0,172.91,172.85,20.0]
[1717682830318,45.0,172.91,172.85,25.78]
[1717682830516,45.0,172.91,172.85,20.0]
[1717682830714,50.78,172.91,172.85,25.78]
[1717682831118,45.0,172.91,172.85,25.78]
[1717682831699,5.78,172.92,172.85,25.78]
[1717682832014,0.34,172.93,172.87,5.78]
[1717682832015,45.0,172.91,172.87,5.78]